Cogmind - Beta 16 @@@ ROGUE MODE // 2025.11.10 @ 14:39:13 Player: Anonymous Bosch Result: Destroyed by X-77 Beamer with Gatling Laser Performance ------------- Evolutions (7) 3500 Regions Visited (16) 3200 Robots Destroyed (205) 1025 Value Destroyed (8353) 8353 Prototype IDs (34) 680 Alien Tech Used (0) 0 Bonus (1239) 1239 TOTAL SCORE: 17997 Bonus ------- High Alert Combat Kills 161 Follower Combat Kills 578 Network Hubs Disabled 200 Aligned with FarCom 300 Cogmind --------- Core Integrity 0/1300 Matter 250/300 Energy 38/100 System Corruption 13% Temperature Cool (18) Movement Core (50) Location -3/Research Parts ------- > --- POWER (2) -------- (None) > --- PROPULSION (6) --- (None) > --- UTILITY (9) ------ (None) > --- WEAPON (4) ------- (None) > --- INVENTORY (5) ---- Light Particle Reactor Improved Trap Extractor (0/6) Trap Reconfigurator Improved Plasma Cutter Great Maul Peak State ------------ > --- POWER ------------ Particle Reactor Particle Reactor > --- PROPULSION ------- Improved Titanium Leg Flexi-carbon Leg Flexi-carbon Leg Myomer Leg Myomer Leg Myomer Leg > --- UTILITY ---------- Advanced Heat Sink Advanced Cooling System Large Storage Unit Improved Signal Interpreter Improved Targeting Computer Advanced Target Analyzer Core Analyzer Advanced Hardlight Generator Improved Hacking Suite > --- WEAPON ----------- Nova Cannon KE Penetrator Railgun Railgun > --- INVENTORY -------- Improved Titanium Leg Improved Titanium Leg Improved Titanium Leg Myomer Leg Myomer Leg Improved Medium Armor Plating Improved Trap Extractor Trap Reconfigurator Quantum Rifle Coil Gun KE Penetrator Railgun Scatter Rocket Array Improved Plasma Cutter Great Maul [Rating: 127] Favorites ----------- Power Enhanced Nuclear Core Engine Ion Engine Power Core Enhanced Nuclear Core Reactor Quantum Reactor Propulsion Carbon-fiber Leg Treads Improved Treads Leg Carbon-fiber Leg Utility Large Storage Unit Device Scrap Suit Storage Large Storage Unit Processor Improved Signal Interpreter Hackware Improved Hacking Suite Protection Improved Light Armor Plating Weapon Gauss Rifle Energy Gun Advanced Variable Charge Gun Energy Cannon Particle Cannon Ballistic Gun Gauss Rifle Ballistic Cannon Light Cannon Launcher Grenade Launcher Impact Weapon Hammer Build | -11 -10 -10 -10 -9 -8 -7 -7 -7 -7 -5 -5 -5 -5 -5 -4 -3 ------- Run | Yrd Mat Min Exi Min Mat Fac Sto Rec Scr Fac Ext Cet Arc Hub Fac Res Slots Evolved 14 | . . . . . 4 2 . . . 4 . . . . 2 2 Power 1 | . . . . . . . . . . . . . . . 1 . Propulsion 4 | . . . . . 2 . . . . 1 . . . . . 1 Utility 7 | . . . . . 2 2 . . . 2 . . . . . 1 Weapon 2 | . . . . . . . . . . 1 . . . . 1 . Parts Attached 162 | 7 10 7 1 1 9 10 28 6 2 13 10 9 4 8 13 24 Power 15 | 1 2 . . . 1 1 4 . . 1 . 1 . . 1 3 Engine 5 | 1 1 . . . 1 1 1 . . . . . . . . . Core 6 | . 1 . . . . . 3 . . 1 . . . . . 1 Reactor 4 | . . . . . . . . . . . . 1 . . 1 2 Propulsion 58 | 2 3 2 . . 3 1 12 5 . 4 6 2 1 5 4 8 Treads 9 | . 2 . . . . . 7 . . . . . . . . . Leg 49 | 2 1 2 . . 3 1 5 5 . 4 6 2 1 5 4 8 Wheel . | . . . . . . . . . . . . . . . . . Hover . | . . . . . . . . . . . . . . . . . Flight . | . . . . . . . . . . . . . . . . . Utility 49 | 2 2 2 1 . 4 4 6 1 2 2 3 4 3 1 4 8 Device 18 | 1 1 1 . . 2 1 2 . . . 1 1 1 1 1 5 Storage 4 | 1 1 . 1 . . . . . . . . . . . . 1 Processor 8 | . . 1 . . . 2 1 . . 1 . 1 . . . 2 Hackware 1 | . . . . . . . . . . 1 . . . . . . Protection 18 | . . . . . 2 1 3 1 2 . 2 2 2 . 3 . Artifact . | . . . . . . . . . . . . . . . . . Weapon 40 | 2 3 3 . 1 1 4 6 . . 6 1 2 . 2 4 5 Energy Gun 7 | . . . . . . 1 1 . . 1 . 1 . . 1 2 Energy Cannon 6 | . 1 2 . . . . 1 . . 1 . . . . . 1 Ballistic Gun 20 | 2 . 1 . . 1 3 2 . . 3 1 1 . 1 3 2 Ballistic Cannon 1 | . 1 . . . . . . . . . . . . . . . Launcher 3 | . . . . 1 . . 2 . . . . . . . . . Special Weapon . | . . . . . . . . . . . . . . . . . Impact Weapon 3 | . 1 . . . . . . . . 1 . . . 1 . . Slashing Weapon . | . . . . . . . . . . . . . . . . . Piercing Weapon . | . . . . . . . . . . . . . . . . . Special Melee Weapon . | . . . . . . . . . . . . . . . . . Unidentified Prototypes 11 | . . . . . . 1 6 . . 1 . 2 . . . 1 Parts Lost 58 | . . . . . . 2 10 . . 3 . 5 1 1 6 30 Power 4 | . . . . . . . 1 . . . . . . . . 3 Propulsion 24 | . . . . . . 1 6 . . 2 . 2 1 . 1 11 Utility 17 | . . . . . . 1 2 . . 1 . 2 . 1 3 7 Weapon 13 | . . . . . . . 1 . . . . 1 . . 2 9 Highest Loss Streak 15 | . . . . . . 2 4 . . 2 . 5 1 1 2 15 To Critical Strikes 2 | . . . . . . . 1 . . . . 1 . . . . Average Backups 13 | 4 8 9 9 9 13 14 14 14 14 13 15 14 14 13 14 13 Power 1 | 1 1 . . . 1 1 1 1 1 1 1 1 1 1 1 . Propulsion 2 | 1 2 1 1 1 1 1 2 3 2 1 2 4 4 4 4 4 Utility 4 | . 1 3 6 6 5 5 5 5 5 4 4 3 3 2 2 2 Weapon 4 | 1 3 3 2 2 4 5 4 5 6 5 6 5 5 6 5 5 Tool/Special . | . . . . . . . . . . . . . . . . . Unused Backups 37 | . 5 5 1 . 1 5 1 1 3 3 3 2 2 2 2 1 Power 9 | . 2 2 . . 1 1 1 . . . 1 1 . . . . Propulsion 7 | . . 2 . . . . . . . . 1 . . 2 2 . Utility 11 | . 1 1 1 . . 1 . . 2 2 1 1 1 . . . Weapon 9 | . 2 . . . . 3 . 1 1 1 . . 1 . . . Tool/Special 1 | . . . . . . . . . . . . . . . . 1 Average Slot Usage (%) 95 | . 98 99 100 100 88 91 92 100 100 98 100 97 94 93 94 94 Engine 3 | . 10 14 14 14 9 7 . . . . . . . . . . Core 2 | . 3 . . . . . 5 7 7 5 5 2 . . . . Reactor 1 | . . . . . . . . . . . . 2 5 5 9 7 Treads 5 | . 13 19 . . . . 16 5 . . . . . . . . Leg 23 | . 14 8 28 28 34 29 12 24 30 27 29 26 28 29 25 25 Device 7 | . 14 10 . . 11 14 8 3 . 2 2 5 5 5 4 11 Storage 7 | . 14 14 14 14 9 7 7 7 7 5 5 5 5 5 5 4 Processor 14 | . . 3 14 14 3 7 17 23 23 17 17 17 17 17 15 16 Hackware 1 | . . . . . . . . . . 4 5 5 5 5 5 3 Protection 6 | . . . . . 3 6 5 10 15 13 13 10 6 4 7 2 Energy Gun 1 | . . . . . . . . . . 3 . 2 5 4 4 2 Energy Cannon 4 | . 10 17 28 16 1 . 3 7 7 1 . . . . . 1 Ballistic Gun 10 | . 14 9 . . 7 9 9 7 7 11 16 13 11 10 13 11 Impact Weapon 1 | . 1 . . 6 9 4 . . . . . . . . . 1 Peak Build Rating 127 | 7 11 16 16 16 37 39 46 50 52 74 77 82 83 89 113 127 Average Rating 54 | 4 8 10 15 15 31 35 42 46 51 69 71 77 82 84 100 115 On Entrance 46 | . 7 9 15 16 15 31 38 44 50 52 71 76 82 83 89 105 Avg Prop Armor Cover (%) 3 | . . . . . . . 4 4 . . . . . . 3 . Naked Turns 7 | . . . . . . . . . . . . . . . . 7 Heaviest Build 102 | 14 22 24 33 33 46 48 51 46 46 63 60 69 73 79 100 102 Greatest Support 140 | 20 40 40 29 29 49 49 92 70 70 90 90 90 75 100 105 140 Greatest Overweight (x) 2 | . 1 1 1 1 . 1 1 . . 1 . 1 1 1 1 2 Average Overweight (x) . | . . . . 1 . . . . . . . . . . . . Largest Inventory Capacity 15 | 8 10 10 15 15 15 15 15 15 15 15 15 15 15 15 15 15 Average Capacity 14 | 7 8 10 11 15 15 15 15 15 15 15 15 15 15 15 15 14 Most Carried 15 | 6 10 10 10 12 15 15 15 15 15 15 15 15 15 15 15 15 Average Carried 13 | 4 8 9 9 10 13 14 14 14 14 13 14 14 14 14 14 13 Final Capacity 15 | 8 10 10 15 15 15 15 15 15 15 15 15 15 15 15 15 5 Final Carried 15 | 6 10 10 10 12 15 13 15 15 15 15 15 15 15 13 15 5 Scrap Suit Usage (%) 7 | . . . . . 8 2 36 . . . . . . . . . Parts Cannibalized 12 | . . . . . . 2 10 . . . . . . . . . Class Distribution -------------------- 36% | Mutant 25% | Scavenger-Gunner 9% | Commander-Mutant 6% | Skirmisher 6% | Assassin 4% | Scientist-Tank 4% | Scavenger-Mutant Dominant Class ---------------- Mutant | -10/Materials Mutant | -10/Mines Mutant | -10/Exiles Mutant | -9/Mines Mutant | -8/Materials Assassin | -7/Factory Mutant | -7/Storage Commander-Mutant | -7/Recycling Commander-Mutant | -7/Scraptown Scientist-Tank | -5/Factory Scavenger-Gunner | -5/Extension Scavenger-Gunner | -5/Cetus Scavenger-Gunner | -5/Archives Scavenger-Gunner | -5/Hub_04(d) Scavenger-Gunner | -4/Factory Scavenger-Gunner | -3/Research Resources | -11 -10 -10 -10 -9 -8 -7 -7 -7 -7 -5 -5 -5 -5 -5 -4 -3 ----------- Run | Yrd Mat Min Exi Min Mat Fac Sto Rec Scr Fac Ext Cet Arc Hub Fac Res Matter Collected 6391 | 314 275 70 . 25 140 328 1521 204 56 543 591 247 175 296 653 953 Remotely . | . . . . . . . . . . . . . . . . . Salvage Created 10684 | 82 506 94 . 107 379 496 2268 828 . 811 786 300 385 531 1149 1962 Parts 499 | 9 35 4 . 1 7 29 114 24 . 37 27 15 17 39 52 89 Haulers Intercepted 6 | . 1 . . . . . 3 . . 1 . . . . 1 . Recyclers Shooed 8 | . . . . . . 1 . 3 . 2 1 . . . 1 . Parts Field Recycled . | . . . . . . . . . . . . . . . . . Retrieved Matter . | . . . . . . . . . . . . . . . . . Parts Self-Destructed . | . . . . . . . . . . . . . . . . . Prevented . | . . . . . . . . . . . . . . . . . Parts Restored . | . . . . . . . . . . . . . . . . . Kills | -11 -10 -10 -10 -9 -8 -7 -7 -7 -7 -5 -5 -5 -5 -5 -4 -3 ------- Run | Yrd Mat Min Exi Min Mat Fac Sto Rec Scr Fac Ext Cet Arc Hub Fac Res Combat Hostiles Destroyed 141 | . 13 2 . . 3 14 33 3 . 7 14 3 4 7 17 21 Melee 1 | . . . . . . 1 . . . . . . . . . . Guns 101 | . 6 . . . 1 13 20 1 . 6 14 3 4 7 13 13 Cannons 20 | . 6 1 . . 1 . 8 2 . . . . . . . 2 AOE 16 | . . . . . . . 5 . . 1 . . . . 4 6 Classes Destroyed 18 | 2 4 . . . . 3 5 . . 1 . . . 1 . 2 Worker 9 | . . . . . . . 4 . . 1 . . . 1 . 3 Builder 6 | . . . . . . . 1 . . . . . . 1 1 3 Tunneler 3 | 2 . . . 1 . . . . . . . . . . . . Hauler 6 | . 1 . . . . . 3 . . 1 . . . . 1 . Recycler 30 | 1 1 . . 1 3 . 7 7 . 3 1 . . . 1 5 Mechanic 1 | . . . . . . . . . . . . . . . . 1 Operator 2 | . . . . . . 1 . . . . . . 1 . . . Watcher 6 | . 3 . . . 1 . . . . 1 . 1 . . . . Swarmer 31 | . 9 . . . 1 7 . . . . 6 . . . 4 4 Grunt 40 | . 4 2 . . 2 4 12 . . 1 6 . . 1 4 4 Brawler 3 | . . . . . . . 2 . . . . . . . 1 . Duelist 2 | . . . . . . . 1 1 . . . . . . . . Protector 1 | . . . . . . . 1 . . . . . . . . . Sentry 28 | . . . . . . 1 11 2 . 1 2 . 4 3 3 1 Specialist 1 | . . . . . . . . . . . . . . . . 1 Hunter 6 | . . . . . . . . . . 1 . . . . 2 3 Programmer 24 | . . . . . . 2 6 . . 4 . . . 2 2 8 Heavy 2 | . . . . . . . . . . . . . . 1 1 . Cetus Guard 3 | . . . . . . . . . . . . 3 . . . . Savage 1 | . . . . . . . . . . . . 1 . . . . Best Kill Streak 17 | 2 3 1 . 1 3 4 8 7 . 4 2 4 4 2 9 17 Combat Bots Only 9 | . 3 1 . . 2 4 6 2 . 2 2 3 4 2 7 9 Max Kills in Single Turn 11 | 1 1 1 . 1 1 1 7 1 . 2 2 2 1 2 5 11 Gunslinging 1 | . . . . . . . . . . . . 1 . 1 . . Exploded 6 | . . . . . . . 4 . . 1 . . . . 3 6 Melee 1 | . . . . . . 1 . . . . . . . . . . Uniques/NPCs Destroyed . | . . . . . . . . . . . . . . . . . Combat | -11 -10 -10 -10 -9 -8 -7 -7 -7 -7 -5 -5 -5 -5 -5 -4 -3 -------- Run | Yrd Mat Min Exi Min Mat Fac Sto Rec Scr Fac Ext Cet Arc Hub Fac Res Hostile Shots Fired 1440 | . 70 7 . 2 5 86 501 49 . 33 39 47 19 25 90 467 Missed 500 | . 12 1 . 2 1 25 171 22 . 5 17 19 6 5 18 196 Hits 940 | . 58 6 . . 4 61 330 27 . 28 22 28 13 20 72 271 Melee 12 | . . . . . . . 6 3 . . . . . . . 3 Projectile 928 | . 58 6 . . 4 61 324 24 . 28 22 28 13 20 72 268 Critical Strikes 30 | . . . . . . 1 5 . . . 1 6 . . 4 13 Part Disruptions 1 | . . 1 . . . . . . . . . . . . . . Damage Taken 13968 | . 502 202 . . 64 938 2963 183 . 701 393 785 345 818 1474 4600 Core 2313 | . 146 46 . . . 141 336 14 . 149 32 28 . . 120 1301 Absorbed by Shields 1100 | . . . . . . . 309 82 . 53 . . . . . 656 Regen/Repaired (Parts) 673 | . . . . . . 137 272 . . . . . . . 264 . Core Remaining (%) 70 | 100 . . . 23 100 . . . 29 . . . . 79 89 . Volleys Fired 541 | 10 43 7 . 4 13 36 116 35 . 42 45 13 15 33 51 78 Largest 4 | 2 2 2 . 1 1 2 2 2 . 3 3 3 3 3 4 4 Hottest 272 | 40 88 136 . 68 68 53 80 55 . 139 90 91 148 240 183 272 Shots Fired 1156 | 20 85 10 . 4 13 68 227 60 . 88 114 39 40 65 151 172 Gun 934 | 20 55 . . . 5 68 174 28 . 70 103 39 40 56 150 126 Cannon 218 | . 30 10 . 4 8 . 52 32 . 18 11 . . 9 . 44 Launcher 4 | . . . . . . . 1 . . . . . . . 1 2 Special . | . . . . . . . . . . . . . . . . . Kinetic 815 | 20 55 . . . 5 68 174 28 . 55 103 39 30 32 108 98 Thermal 337 | . 30 10 . 4 8 . 52 32 . 33 11 . 10 33 42 72 Explosive 4 | . . . . . . . 1 . . . . . . . 1 2 Electromagnetic . | . . . . . . . . . . . . . . . . . Robot Hit Streak 27 | 6 10 11 . 1 3 11 27 12 . 20 24 13 19 10 17 10 Robot Miss Streak 10 | 2 5 . . 2 3 5 7 3 . 2 2 2 2 3 3 10 Penetration Max 1 | . . . . . 1 . 1 . . 1 1 1 . . 1 1 Secondary Targets 11 | . . . . . . 2 1 . . 1 1 1 . 1 1 3 Max Gunslinging Chain 1 | . . . . . . 1 1 . . 1 1 1 . 1 1 1 Shots Hit Robots 723 | 14 42 9 . 2 14 42 178 35 . 51 69 29 33 33 85 87 Core Hits 484 | 5 19 2 . 3 4 27 133 15 . 28 33 17 15 18 54 111 Critical Kills 23 | . 2 . . . 1 1 2 . . . 1 3 3 2 2 6 Critical Parts Destroyed 21 | . . . . . 5 . 2 . . . . 1 2 . 5 6 Critical Strikes 51 | . 2 . . . 6 1 5 . . . 1 5 6 4 8 13 Burn 1 | . . . . . . . . . . . . . . . . 1 Meltdown 1 | . 1 . . . . . . . . . . . . . . . Destroy 44 | . 1 . . . 2 1 5 . . . 1 5 6 4 7 12 Smash 5 | . . . . . 4 . . . . . . . . . 1 . Melee Attacks 90 | . 1 . . 3 12 26 23 . . 4 . . . 7 5 9 Impact 90 | . 1 . . 3 12 26 23 . . 4 . . . 7 5 9 Slashing . | . . . . . . . . . . . . . . . . . Piercing . | . . . . . . . . . . . . . . . . . Sneak Attacks 6 | . . . . 1 2 . 2 . . . . . . . 1 . Combat Hostiles 1 | . . . . . . . 1 . . . . . . . . . Follow-up Attacks . | . . . . . . . . . . . . . . . . . Damage Inflicted 21546 | 152 629 187 . 103 443 898 5136 924 . 1694 1510 725 831 1045 2696 4573 Guns 14251 | 152 329 . . . 114 861 3041 380 . 1131 1510 725 831 812 2167 2198 Cannons 2630 | . 300 187 . 22 82 . 1071 544 . . . . . . . 424 Explosions 4111 | . . . . . . . 918 . . 563 . . . 233 446 1951 Melee 533 | . . . . 64 247 37 102 . . . . . . . 83 . Ramming 21 | . . . . 17 . . 4 . . . . . . . . . Kinetic 12417 | 152 329 . . . 114 861 3041 380 . 777 1510 725 604 554 1780 1590 Thermal 5094 | . 300 187 . 22 82 . 1071 544 . 884 . . 227 258 487 1032 Explosive 3215 | . . . . . . . 918 . . . . . . . 346 1951 Electromagnetic 266 | . . . . . . . . . . 33 . . . 233 . . Impact 533 | . . . . 64 247 37 102 . . . . . . . 83 . Slashing . | . . . . . . . . . . . . . . . . . Piercing . | . . . . . . . . . . . . . . . . . Highest Corruption 15 | . . . . . . 3 15 15 15 2 2 2 2 3 1 13 Average Corruption 4 | . . . . . . 2 5 15 15 1 2 2 1 2 1 2 Corruption Purged 2 | . . . . . . . . . . . . . 2 . . . Corruption Blocked . | . . . . . . . . . . . . . . . . . Effects 157 | . . . . . . 9 71 29 . 9 10 6 4 1 6 12 Message Errors 28 | . . . . . . 2 15 4 . . 1 2 3 . . 1 Matter Fused 40 | . . . . . . 2 19 5 . 6 3 1 . 1 2 1 Heat Flow Errors 23 | . . . . . . 2 7 4 . . 2 1 . . 3 4 Energy Discharges 18 | . . . . . . 1 6 5 . . 1 1 1 . 1 2 Parts Rejected 4 | . . . . . . 1 2 . . . . . . . . 1 Parts Fused 1 | . . . . . . . 1 . . . . . . . . . Data Loss (minor) 17 | . . . . . . 1 9 3 . 1 1 . . . . 2 Data Loss (major) 12 | . . . . . . . 7 3 . 1 . 1 . . . . Misfires 6 | . . . . . . . 5 . . . 1 . . . . . Alerts 3 | . . . . . . . . 2 . . 1 . . . . . Misdirections 1 | . . . . . . . . . . . . . . . . 1 Weapon Failures 4 | . . . . . . . . 3 . 1 . . . . . . Overload Shots 2 | . . . . . . . . . . . . . . 2 . . Overflow Damage 613 | . 4 . . . 151 . 51 17 . 221 . . . . 83 86 Projectiles 81 | . 4 . . . . . 20 17 . . . . . . . 40 Explosions 270 | . . . . . . . 3 . . 221 . . . . . 46 Melee 262 | . . . . . 151 . 28 . . . . . . . 83 . Knockbacks 1 | . . . . . . . . . . . . . . . 1 . Impact 1 | . . . . . . . . . . . . . . . 1 . Kinetic . | . . . . . . . . . . . . . . . . . Secondary . | . . . . . . . . . . . . . . . . . Self-Inflicted Damage 811 | . . . . . . . 120 . . 172 . . . 105 124 290 Shots 22 | . . . . . . . 4 . . 2 . . . 1 3 12 Rammed 1 | . . . . . . . 1 . . . . . . . . . Targets Rammed 4 | . . . . 3 . . 1 . . . . . . . . . Kicked 3 | . . . . 3 . . . . . . . . . . . . Crushed . | . . . . . . . . . . . . . . . . . Highest Temperature 515 | . 297 307 . 68 48 196 230 256 . 407 177 135 81 130 515 211 Average Temperature 77 | . 102 145 . 30 19 67 36 66 . 112 45 65 30 36 119 55 Received Heat Transfer 1695 | . 69 51 . . 18 51 829 18 . 45 144 90 45 54 66 215 Effects 9 | . . . . . . . . . . 3 . . . . 6 . Shutdowns 4 | . . . . . . . . . . 1 . . . . 3 . Energy Bleed 1 | . . . . . . . . . . 1 . . . . . . Matter Decay 1 | . . . . . . . . . . . . . . . 1 . Short Circuit 2 | . . . . . . . . . . 1 . . . . 1 . Damage (minor) 1 | . . . . . . . . . . . . . . . 1 . Siege Activations . | . . . . . . . . . . . . . . . . . Martial Activations . | . . . . . . . . . . . . . . . . . Shielding Activations . | . . . . . . . . . . . . . . . . . Robots Disrupted . | . . . . . . . . . . . . . . . . . Combat Hostiles . | . . . . . . . . . . . . . . . . . Robots Corrupted 3 | . . . . . 2 . . . . . . . . . 1 . Combat Hostiles 1 | . . . . . 1 . . . . . . . . . . . Parts Fried 4 | . . . . . 2 . . . . . . . . . 2 . Impact Corruptions 8 | . . . . . 5 . 1 . . . . . . . 2 . Robots Melted 2 | . 1 1 . . . . . . . . . . . . . . Combat Hostiles 2 | . 1 1 . . . . . . . . . . . . . . Parts Melted 11 | . . 1 . . 1 . 4 . . 1 1 . . . . 3 Heat Transferred 6349 | . 518 333 . 37 148 . 1350 740 . 805 . . 296 333 568 1221 Parts Sabotaged 4 | . . . . . . . . . . . . . . . . 4 Parts Stolen . | . . . . . . . . . . . . . . . . . Parts Stripped . | . . . . . . . . . . . . . . . . . Power Chain Reactions 1 | . . . . . . . . . . 1 . . . . . . Alert | -11 -10 -10 -10 -9 -8 -7 -7 -7 -7 -5 -5 -5 -5 -5 -4 -3 ------- Run | Yrd Mat Min Exi Min Mat Fac Sto Rec Scr Fac Ext Cet Arc Hub Fac Res Maximum Alert Level 2 | . . . . . 1 . 2 1 . 1 2 . . 2 2 1 Low Security (%) 80 | 100 100 100 . 100 93 100 80 69 . 98 26 100 100 95 26 70 Level 1 15 | . . . . . 6 . 7 30 . 1 71 . . . 47 29 Level 2 4 | . . . . . . . 12 . . . 1 . . 4 25 . Level 3 . | . . . . . . . . . . . . . . . . . Level 4 . | . . . . . . . . . . . . . . . . . Level 5 . | . . . . . . . . . . . . . . . . . High Security . | . . . . . . . . . . . . . . . . . Max Security . | . . . . . . . . . . . . . . . . . Peak Influence 590 | 10 163 42 . 70 218 117 590 249 . 201 445 159 55 449 508 390 Initial 233 | . . 39 . . 11 57 49 228 . . 90 159 . . 212 233 Average 120 | 1 56 4 . 9 108 23 171 142 . 49 276 27 13 53 305 172 Influence Increases 6527 | 15 424 50 . 89 382 421 1263 125 . 422 809 107 122 685 763 850 Destroy 0b10 Robot/C 3180 | . 260 40 . 60 180 280 640 60 . 140 460 80 80 140 340 420 Destroy 0b10 Robot/NC 330 | 15 25 . . 10 30 5 80 40 . 25 5 5 5 10 15 60 Destroy Leader 724 | . 58 10 . 10 34 60 216 . . 44 50 . . 60 82 100 Allied During Kill 169 | . . . . 8 30 . . 5 . . 121 4 1 . . . Trap Triggered on 0b10 50 | . . . . . 20 . . . . 20 . . . . . 10 Successful Hack 164 | . 35 . . . 10 17 43 . . 7 9 12 . 19 . 12 Disable Machine 555 | . 15 . . . 30 30 90 . . 90 45 . 30 150 75 . Destroy Structure 860 | . 1 . . 1 3 14 89 20 . 96 44 6 6 276 176 128 Partial Spotted 30 | . . . . . . 15 . . . . . . . . . 15 Lose Combat Pursuer 465 | . 30 . . . 45 . 105 . . . 75 . . 30 75 105 Influence Decreases 6274 | 15 323 151 . 59 285 439 786 692 19 237 709 392 122 250 753 1042 Entered New Map 1244 | . . 62 . . 19 70 60 358 19 . 95 126 . . 223 212 Time Decay 4060 | 15 323 89 . 59 246 359 606 294 . 207 434 96 92 240 470 530 Lost Part 570 | . . . . . . 10 100 . . 30 . 50 10 10 60 300 Lost Ally 400 | . . . . . 20 . 20 40 . . 180 120 20 . . . Squads Dispatched 40 | . 1 . . . . 3 11 . . 5 1 . . 4 4 11 Investigation 6 | . 1 . . . . . 2 . . 1 . . . 1 . 1 Extermination 18 | . . . . . . 2 6 . . 3 . . . 2 1 4 Reinforcement 15 | . . . . . . 1 2 . . 1 1 . . 1 3 6 Assault 1 | . . . . . . . 1 . . . . . . . . . Garrison . | . . . . . . . . . . . . . . . . . Intercept . | . . . . . . . . . . . . . . . . . Searches Triggered . | . . . . . . . . . . . . . . . . . Construction Impeded 3 | . . . . . . . . . . . . . . . 2 1 Haulers Reinforced 1 | . . . . . . . . . . 1 . . . . . . Active Scanning Responses . | . . . . . . . . . . . . . . . . . Cargo Convoy Interrupts 1 | . . . . . . . . . . . . . . . . 1 Stealth | -11 -10 -10 -10 -9 -8 -7 -7 -7 -7 -5 -5 -5 -5 -5 -4 -3 --------- Run | Yrd Mat Min Exi Min Mat Fac Sto Rec Scr Fac Ext Cet Arc Hub Fac Res Distress Signals 15 | . . . . 1 1 2 4 . . 1 1 1 . . . 4 Communications Jammed . | . . . . . . . . . . . . . . . . . Distress Signals . | . . . . . . . . . . . . . . . . . Times Spotted 237 | . 20 2 . 3 15 20 40 5 . 9 21 5 4 19 18 56 Peak Tracking Total 20 | . 3 2 . 3 7 4 6 3 . 3 4 5 1 9 4 20 Tactical Retreats 22 | . 2 . . . 2 . 5 . . . 4 . . 2 2 5 Traps | -11 -10 -10 -10 -9 -8 -7 -7 -7 -7 -5 -5 -5 -5 -5 -4 -3 ------- Run | Yrd Mat Min Exi Min Mat Fac Sto Rec Scr Fac Ext Cet Arc Hub Fac Res Traps Triggered 8 | . 2 1 . . 1 . . . . 1 1 . . . . 2 Indirectly . | . . . . . . . . . . . . . . . . . Trap Hack Attempts . | . . . . . . . . . . . . . . . . . Triggered . | . . . . . . . . . . . . . . . . . Disarmed . | . . . . . . . . . . . . . . . . . Reprogrammed . | . . . . . . . . . . . . . . . . . Reused 5 | . . . . . 2 . . . . 2 . . . . . 1 Traps Reconfigurated 21 | . . . . . 8 . . . . 10 . . . . 1 2 Traps Extracted . | . . . . . . . . . . . . . . . . . Installed . | . . . . . . . . . . . . . . . . . Triggered 5 | . . . . . 2 . . . . 2 . . . . . 1 Machines | -11 -10 -10 -10 -9 -8 -7 -7 -7 -7 -5 -5 -5 -5 -5 -4 -3 ---------- Run | Yrd Mat Min Exi Min Mat Fac Sto Rec Scr Fac Ext Cet Arc Hub Fac Res Machines Disabled 37 | . 1 . . . 2 2 6 . . 6 3 . 2 10 5 . Max in Single Turn 9 | . 1 . . . . 1 2 . . 2 . . 1 9 2 . Garrison Access 1 | . . . . . . . . . . . . . . . 1 . Network Hub 1 | . . . . . . . . . . . . . . 1 . . Energy Cycler 1 | . . . . . . . . . . . 1 . . . . . Machines Repaired . | . . . . . . . . . . . . . . . . . Machines Dismantled . | . . . . . . . . . . . . . . . . . Machines Sabotaged . | . . . . . . . . . . . . . . . . . Overloaded Fab Kills . | . . . . . . . . . . . . . . . . . Hacking | -11 -10 -10 -10 -9 -8 -7 -7 -7 -7 -5 -5 -5 -5 -5 -4 -3 --------- Run | Yrd Mat Min Exi Min Mat Fac Sto Rec Scr Fac Ext Cet Arc Hub Fac Res Machines Accessed 50 | . 7 1 3 . 2 3 13 4 . 2 3 3 1 5 2 1 Terminals 37 | . 7 . . . 1 2 11 3 . 1 3 3 . 5 . 1 Fabricators . | . . . . . . . . . . . . . . . . . Repair Stations 3 | . . . . . . 1 1 . . . . . . . 1 . Recycling Units 2 | . . . . . . . 1 1 . . . . . . . . Scanalyzers 2 | . . . . . 1 . . . . 1 . . . . . . Garrison Access 1 | . . . . . . . . . . . . . . . 1 . Total Hacks 159 | . 26 1 3 . 9 8 34 7 . 8 6 6 25 18 5 3 Successful 95 | . 13 1 3 . 6 3 14 1 . 7 3 3 25 12 3 1 Failed 63 | . 13 . . . 2 5 20 6 . 1 3 3 . 6 2 2 Catastrophic 14 | . 2 . . . . 1 6 2 . . . . . 1 1 1 Database Lockouts 1 | . . . . . 1 . . . . . . . . . . . Manual 81 | . 25 . 1 . 4 6 19 6 . 3 . 2 . 12 . 3 Terminals 106 | . 26 . . . 5 6 27 6 . 3 6 6 . 18 . 3 Fabricators . | . . . . . . . . . . . . . . . . . Repair Stations 8 | . . . . . . 2 4 . . . . . . . 2 . Recycling Units 4 | . . . . . . . 3 1 . . . . . . . . Scanalyzers 9 | . . . . . 4 . . . . 5 . . . . . . Garrison Access 3 | . . . . . . . . . . . . . . . 3 . Terminal Hacks 60 | . 7 1 3 . 2 . 6 . . 1 3 3 25 9 . . Record 36 | . . . 2 . . . 1 . . . 1 2 25 5 . . Part Schematic 2 | . 2 . . . . . . . . . . . . . . . Robot Analysis 3 | . 3 . . . . . . . . . . . . . . . Open Door 8 | . . 1 . . . . 4 . . . 2 1 . . . . Level Access Points 1 | . . . . . . . . . . . . . . 1 . . Branch Access Points 4 | . 1 . . . 1 . . . . 1 . . . 1 . . Emergency Access Points 2 | . 1 . . . . . . . . . . . . 1 . . Locate Traps 3 | . . . . . 1 . 1 . . . . . . 1 . . Proto ID Catalog 1 | . . . 1 . . . . . . . . . . . . . Fabricator Hacks . | . . . . . . . . . . . . . . . . . Repair Station Hacks 8 | . . . . . . 2 4 . . . . . . . 2 . Scan Component 4 | . . . . . . 1 2 . . . . . . . 1 . Repair 4 | . . . . . . 1 2 . . . . . . . 1 . Recycling Unit Hacks 1 | . . . . . . . . 1 . . . . . . . . Retrieve Components 1 | . . . . . . . . 1 . . . . . . . . Scanalyzer 8 | . . . . . 3 . . . . 5 . . . . . . Insert Component 1 | . . . . . 1 . . . . . . . . . . . Analyze 1 | . . . . . 1 . . . . . . . . . . . Retrieve Study 6 | . . . . . 1 . . . . 5 . . . . . . Garrison Access Hacks 1 | . . . . . . . . . . . . . . . 1 . Seal Access 1 | . . . . . . . . . . . . . . . 1 . Unauthorized Hacks 17 | . 6 . . . 1 1 4 . . 1 . . . 3 . 1 Terminals 17 | . 6 . . . 1 1 4 . . 1 . . . 3 . 1 Botnet 17 | . 6 . . . 1 1 4 . . 1 . . . 3 . 1 Fabricators . | . . . . . . . . . . . . . . . . . Repair Stations . | . . . . . . . . . . . . . . . . . Recycling Units . | . . . . . . . . . . . . . . . . . Scanalyzers . | . . . . . . . . . . . . . . . . . Garrison Access . | . . . . . . . . . . . . . . . . . Data Cores Recovered . | . . . . . . . . . . . . . . . . . Used . | . . . . . . . . . . . . . . . . . Hacking Detections 40 | . 7 . . . 1 2 10 4 . 2 3 3 . 5 2 1 Full Trace Events 6 | . 1 . . . . . 2 . . 1 . . . 1 . 1 Feedback Events 1 | . . . . . . . 1 . . . . . . . . . Corruption 1 | . . . . . . . 1 . . . . . . . . . Feedback Blocked . | . . . . . . . . . . . . . . . . . Robot Schematics Acquired . | . . . . . . . . . . . . . . . . . Robots Built . | . . . . . . . . . . . . . . . . . Authchips . | . . . . . . . . . . . . . . . . . Time . | . . . . . . . . . . . . . . . . . Total Robot Build Rating . | . . . . . . . . . . . . . . . . . Part Schematics Acquired 2 | . 2 . . . . . . . . . . . . . . . Parts Built . | . . . . . . . . . . . . . . . . . Authchips . | . . . . . . . . . . . . . . . . . Time . | . . . . . . . . . . . . . . . . . Total Part Build Rating . | . . . . . . . . . . . . . . . . . Part Studies Acquired 6 | . . . . . 1 . . . . 5 . . . . . . Parts Repaired 4 | . . . . . . 1 2 . . . . . . . 1 . Time 140 | . . . . . . 38 64 . . . . . . . 38 . Parts Recycled . | . . . . . . . . . . . . . . . . . Recycled Matter . | . . . . . . . . . . . . . . . . . Retrieved Matter . | . . . . . . . . . . . . . . . . . Retrieved Components 9 | . . . . . . . . 9 . . . . . . . . Parts Scanalyzed 1 | . . . . . 1 . . . . . . . . . . . Part Schematics Acquired . | . . . . . . . . . . . . . . . . . Parts Damaged . | . . . . . . . . . . . . . . . . . Bothacking | -11 -10 -10 -10 -9 -8 -7 -7 -7 -7 -5 -5 -5 -5 -5 -4 -3 ------------ Run | Yrd Mat Min Exi Min Mat Fac Sto Rec Scr Fac Ext Cet Arc Hub Fac Res Used RIF Installer . | . . . . . . . . . . . . . . . . . Robots Hacked . | . . . . . . . . . . . . . . . . . Non-combat . | . . . . . . . . . . . . . . . . . Combat . | . . . . . . . . . . . . . . . . . Robot Hacks Applied . | . . . . . . . . . . . . . . . . . Relay Couplers Released . | . . . . . . . . . . . . . . . . . Fabnet Peak Effective % . | . . . . . . . . . . . . . . . . . Robots Rewired 19 | . . . . . . . . 6 . . 13 . . . . . Allies Hacked . | . . . . . . . . . . . . . . . . . Hacks Repelled . | . . . . . . . . . . . . . . . . . Allies | -11 -10 -10 -10 -9 -8 -7 -7 -7 -7 -5 -5 -5 -5 -5 -4 -3 -------- Run | Yrd Mat Min Exi Min Mat Fac Sto Rec Scr Fac Ext Cet Arc Hub Fac Res Total Allies 27 | . . . . 4 . . . 6 . . 17 . . . . . Largest Group 8 | . . . . 3 3 . . 6 4 4 8 8 1 . . . Highest-Rated Group 192 | . . . . 63 63 . . 114 68 68 192 192 21 . . . Highest-Rated Ally 40 | . . . . 31 31 . . 40 40 40 39 31 21 . . . Total Orders 5 | . . . . . . . 5 . . . . . . . . . EXPLORE 5 | . . . . . . . 5 . . . . . . . . . Ally Attacks 143 | . . . . 13 34 . . 10 . . 72 14 . . . . Total Damage 2124 | . . . . 165 427 . . 161 . . 1073 298 . . . . Kills 21 | . . . . 3 8 . . . . . 9 1 . . . . Allies Corrupted . | . . . . . . . . . . . . . . . . . Allies Melted . | . . . . . . . . . . . . . . . . . Intel | -11 -10 -10 -10 -9 -8 -7 -7 -7 -7 -5 -5 -5 -5 -5 -4 -3 ------- Run | Yrd Mat Min Exi Min Mat Fac Sto Rec Scr Fac Ext Cet Arc Hub Fac Res Active Infowar (turns) 3836 | 19 1128 625 . . . 1526 538 . . . . . . . . . Sensors 2772 | . 83 625 . . . 1526 538 . . . . . . . . . Seismic 1064 | 19 1045 . . . . . . . . . . . . . . . Robot Analysis Total 3 | . 3 . . . . . . . . . . . . . . . Derelict Logs Recovered 3 | . . 3 . . . . . . . . . . . . . . Drone Launches 5 | . . . . . . . 5 . . . . . . . . . Drone Recoveries 3 | . . . . . . . 3 . . . . . . . . . Exploration | -11 -10 -10 -10 -9 -8 -7 -7 -7 -7 -5 -5 -5 -5 -5 -4 -3 ------------- Run | Yrd Mat Min Exi Min Mat Fac Sto Rec Scr Fac Ext Cet Arc Hub Fac Res Turns Passed 16536 | 146 1129 916 415 655 522 1527 3045 649 1123 1236 1076 365 315 742 1193 1482 Spaces Moved 8272 | 85 665 603 332 326 238 682 935 371 877 552 559 265 188 401 585 608 Core 21 | 7 . . . . . . . . . . . . . . . 14 Treads 1204 | . 283 388 . . . . 498 35 . . . . . . . . Legs 7047 | 78 382 215 332 326 238 682 437 336 877 552 559 265 188 401 585 594 Wheels . | . . . . . . . . . . . . . . . . . Hover . | . . . . . . . . . . . . . . . . . Flight . | . . . . . . . . . . . . . . . . . Fastest Speed 50 | 50 120 110 110 190 107 107 111 118 125 107 107 105 105 105 115 50 Average Speed 125 | 114 137 142 124 190 109 110 141 123 125 115 109 111 105 108 120 117 Slowest Speed 255 | 120 190 180 190 190 115 181 200 160 125 178 111 175 175 175 186 255 Overloaded Moves . | . . . . . . . . . . . . . . . . . Propulsion Burnouts . | . . . . . . . . . . . . . . . . . Robots Hopped 1 | . . . . . 1 . . . . . . . . . . . Potential Cave-ins 11 | . . . . . . . . . . . 7 . . 4 . . Cave-ins Triggered . | . . . . . . . . . . . . . . . . . Exploration Rate (%) 53 | 5 96 99 72 82 24 9 88 48 56 13 65 82 97 35 16 14 Regions Visited 16 Branch Regions 10 Pre-discovered Areas 1 | . . . . . . . 1 . . . . . . . . . Known Exits Taken 15 | . 1 1 1 1 1 1 1 1 1 1 1 1 1 1 1 . Unknown Exits Taken 1 | 1 . . . . . . . . . . . . . . . . Scrap Searched 4 | . . 1 . . . . . . 3 . . . . . . . Spaces Dug 161 | . 1 . . 1 2 11 16 6 . 18 11 . . 21 12 62 Terrain Destroyed 585 | . 1 . . 1 2 11 99 9 . 51 11 2 3 206 99 90 Melee 48 | . 1 . . 1 2 11 11 . . 2 . . . 7 4 9 Projectile 173 | . . . . . . . 16 9 . 16 11 2 3 33 41 42 AOE 362 | . . . . . . . 72 . . 33 . . . 166 53 38 Terrain Rammed . | . . . . . . . . . . . . . . . . . Walls Destroyed . | . . . . . . . . . . . . . . . . . Machines Disabled . | . . . . . . . . . . . . . . . . . Actions | -11 -10 -10 -10 -9 -8 -7 -7 -7 -7 -5 -5 -5 -5 -5 -4 -3 --------- Run | Yrd Mat Min Exi Min Mat Fac Sto Rec Scr Fac Ext Cet Arc Hub Fac Res Total 13276 | 116 801 653 335 349 462 1341 2383 509 909 1069 953 309 274 641 958 1214 Wait 3681 | . 54 18 . 10 174 551 1220 2 21 423 239 9 50 173 286 451 Move 8254 | 84 664 602 331 325 235 681 934 370 876 551 558 264 187 400 584 608 Hop 1 | . . . . . 1 . . . . . . . . . . . Pick Up 132 | 13 12 7 1 2 11 14 19 3 4 12 4 5 5 3 8 9 Fast Attach 59 | . 4 2 . . 1 2 11 1 . 6 3 4 5 1 6 13 Attach 61 | 8 2 1 . . 3 6 11 . . 6 . 3 . 1 5 15 Detach 5 | 1 1 1 . . . . 1 1 . . . . . . . . Swap 149 | . 7 4 1 2 8 11 29 8 2 18 11 4 1 14 9 20 Drop 141 | . 13 11 2 . 4 14 18 9 6 7 15 7 11 9 4 11 Fire 541 | 10 43 7 . 4 13 36 116 35 . 42 45 13 15 33 51 78 Melee 90 | . 1 . . 3 12 26 23 . . 4 . . . 7 5 9 Ram . | . . . . . . . . . . . . . . . . . Kick 3 | . . . . 3 . . . . . . . . . . . . Crush 1 | . . . . . . . 1 . . . . . . . . . Escape Stasis 6 | . . . . . . . . . . . 6 . . . . . Rewire 152 | . . . . . . . . 80 . . 72 . . . . . Trap . | . . . . . . . . . . . . . . . . . Miscellaneous . | . . . . . . . . . . . . . . . . . Route ------- -11/Scrapyard -10/Materials (discovered 5 exits: *Mat x3 / *Min x2) -10/Mines (discovered 3 exits: *Mat x2 / *Exi) -10/Exiles (discovered 2 exits: *Min x2) -9/Mines -8/Materials (discovered 3 exits: *Fac x3) -7/Factory -7/Storage (discovered 2 exits: *Fac / *Rec) -7/Recycling (discovered 2 exits: *Fac / *Scr) -7/Scraptown -5/Factory (discovered 4 exits: Upp x2 / *Ext x2) -5/Extension (discovered 2 exits: *Fac / *Cet) -5/Cetus -5/Archives (discovered 3 exits: *Fac / *Hub x2) -5/Hub_04(d) (discovered 4 exits: *Fac x4) -4/Factory -3/Research (discovered 1 exit: [*Arm]) History --------- Turn | Location | Event 8 | -11/Scrapyard | Discovered new exit (range 15) 147 | -11/Scrapyard | Entered Materials 282 | -10/Materials | Identified exit to Mines 301 | -10/Materials | Build established: Mutant 596 | -10/Materials | Discovered new exit (range 13) 789 | -10/Materials | Discovered new exit (range 15) 890 | -10/Materials | Discovered new exit (range 13) 919 | -10/Materials | Core integrity fell below 50% 1276 | -10/Materials | Entered Mines 1280 | -10/Mines | Met a Derelict bent on vengeance 1328 | -10/Mines | Learned 8 Materials zone layouts 1371 | -10/Mines | Deemed a non-threat by the Exiles lab entrance 1371 | -10/Mines | Discovered new exit (range 5) 1672 | -10/Mines | Discovered new exit (range 14) 1881 | -10/Mines | Discovered new exit (range 7) 1890 | -10/Mines | Met a Derelict who couldn't figure out how to use a Trap Extractor 1935 | -10/Mines | Identified exit to Materials 2021 | -10/Mines | Found a Scrap Suit stashed away for nefarious purposes 2025 | -10/Mines | Found Scrap Suit 2191 | -10/Mines | Identified exit to Exiles 2192 | -10/Mines | Entered Exiles 2193 | -10/Exiles | Identified exit to Mines 2219 | -10/Exiles | Met 8R-AWN 2238 | -10/Exiles | Met EX-HEX 2278 | -10/Exiles | Met EX-DEC 2320 | -10/Exiles | Met EX-BIN 2345 | -10/Exiles | Aligned with FarCom system 2346 | -10/Exiles | Given EX-Vault access code 2372 | -10/Exiles | Opened EX-Vault 2380 | -10/Exiles | Found Trap Reconfigurator 2418 | -10/Exiles | Exiles lab attacked by MAIN.C 2607 | -10/Exiles | Left Exiles lab with Trap Reconfigurator 2607 | -10/Exiles | Entered Mines 2640 | -9/Mines | Assisted by bots powering up and referring to "LRC-V3" 2709 | -9/Mines | Assembled infested the area 3238 | -9/Mines | Discovered new exit (range 10) 3252 | -9/Mines | Received a Mining Laser from a helpful Derelict 3255 | -9/Mines | Identified exit to Materials 3262 | -9/Mines | Entered Materials 3262 | -8/Materials | Accompanied by 3 allies 3262 | -8/Materials | Evolved 4 slots: Propulsion x2, Utility x2 3263 | -8/Materials | Identified exit to Factory 3402 | -8/Materials | Central database locked down 3440 | -8/Materials | Discovered exit to Factory (range 14) 3784 | -8/Materials | Entered Factory 3784 | -7/Factory | Evolved 2 slots: Utility x2 4073 | -7/Factory | Build established: Assassin 4771 | -7/Factory | Discovered new exit (range 15) 5155 | -7/Factory | Repaired Titanium Leg 5310 | -7/Factory | Identified exit to Storage 5311 | -7/Factory | Entered Storage 5312 | -7/Storage | Identified exit to Recycling 5396 | -7/Storage | Repaired Aluminum Leg+ 5436 | -7/Storage | Repaired Hpw. Shotgun? 5438 | -7/Storage | Build established: Skirmisher 6055 | -7/Storage | Found Prototype Launcher 6055 | -7/Storage | Identified Scatter Rocket Array 6204 | -7/Storage | Build established: Scavenger-Mutant 6336 | -7/Storage | Learned location of Armory (-3) 6382 | -7/Storage | Core integrity fell below 50% 6412 | -7/Storage | Lost 4 parts (1p2n1w) 6593 | -7/Storage | Found Prototype Launcher 6593 | -7/Storage | Identified Rocket Array 6784 | -7/Storage | Build established: Mutant 7808 | -7/Storage | Discovered new exit (range 16) 7922 | -7/Storage | Identified exit to Factory 8111 | -7/Storage | First assault squad dispatched 8203 | -7/Storage | System corruption reached 10% 8327 | -7/Storage | Used back door to open Recycling access 8356 | -7/Storage | Entered Recycling 8357 | -7/Recycling | Joined Warlord attack on 0b10 via Recycling 8855 | -7/Recycling | Build established: Commander-Mutant 8901 | -7/Recycling | Discovered new exit (range 9) 8929 | -7/Recycling | Identified exit to Factory 8969 | -7/Recycling | Scanned before Scraplab entrance 8988 | -7/Recycling | Entered Scraplab 8999 | -7/Recycling | Discovered new exit (range 2) 8999 | -7/Recycling | Identified exit to Scraptown 9005 | -7/Recycling | Entered Scraptown 9005 | -7/Scraptown | Accompanied by 4 allies 9008 | -7/Scraptown | System corruption cleaned by C-Scrubber 9316 | -7/Scraptown | Discovered exit to Factory (range 5) 9408 | -7/Scraptown | Visited Spacefarers 9443 | -7/Scraptown | Visited Cyclists 9550 | -7/Scraptown | Visited CPS Storage 9564 | -7/Scraptown | Visited TADAMA 9809 | -7/Scraptown | Visited Cave Peace 9846 | -7/Scraptown | Visited Awakened 9889 | -7/Scraptown | Visited Fellowship of the Rings 10020 | -7/Scraptown | Turned away by UFD registrar 10128 | -7/Scraptown | Entered Factory 10128 | -5/Factory | Accompanied by 4 allies 10128 | -5/Factory | Evolved 4 slots: Propulsion x1, Utility x2, Weapon x1 10492 | -5/Factory | Build established: Commander-Gunner 10568 | -5/Factory | P-70 Sage assimilated allied Serf 4a 10588 | -5/Factory | Lost 3 allies 11017 | -5/Factory | Build established: Scientist-Tank 11189 | -5/Factory | Identified exit to Upper Caves 11189 | -5/Factory | Identified exit to Extension 11364 | -5/Factory | Entered Extension 11653 | -5/Extension | Rescued a captive Derelict 11656 | -5/Extension | Rescued a captive Derelict 11788 | -5/Extension | Rescued a captive Derelict 11844 | -5/Extension | Energy Cycler disabled 11845 | -5/Extension | Rescued a captive Derelict 11865 | -5/Extension | Rescued a captive Derelict 12014 | -5/Extension | Lost 4 allies 12129 | -5/Extension | Build established: Scavenger-Gunner 12347 | -5/Extension | Lost 3 allies 12401 | -5/Extension | Discovered new exit (range 10) 12402 | -5/Extension | Discovered new exit (range 6) 12408 | -5/Extension | Identified exit to Cetus 12440 | -5/Extension | Entered Cetus 12440 | -5/Cetus | Accompanied by 8 allies 12459 | -5/Cetus | Spotted Cetus Guard 12461 | -5/Cetus | Spotted Cetus Guard 12462 | -5/Cetus | Spotted Cetus Guard 12462 | -5/Cetus | Spotted Cetus Guard 12491 | -5/Cetus | Destroyed Cetus Guard 12492 | -5/Cetus | Allies destroyed Cetus Guard 12501 | -5/Cetus | Destroyed Cetus Guard 12501 | -5/Cetus | Destroyed Cetus Guard 12524 | -5/Cetus | Lost 7 allies 12528 | -5/Cetus | Lost 5 parts (2n2u1w) 12743 | -5/Cetus | Discovered new exit (range 16) 12757 | -5/Cetus | Identified exit to Archives 12805 | -5/Cetus | Entered Archives 12805 | -5/Archives | Accompanied by 1 ally 12885 | -5/Archives | Unable to access archive contents 12896 | -5/Archives | Unable to access archive contents 12913 | -5/Archives | Discovered new exit (range 15) 12927 | -5/Archives | Discovered new exit (range 15) 12942 | -5/Archives | Unable to access archive contents 12955 | -5/Archives | Unable to access archive contents 12975 | -5/Archives | Identified exit to Hub_04(d) 13074 | -5/Archives | Identified exit to Factory 13100 | -5/Archives | Discovered exit to Hub_04(d) (range 16) 13120 | -5/Archives | Entered Hub_04(d) 13827 | -5/Hub_04(d) | Network Hub disabled 13858 | -5/Hub_04(d) | Spotted Lightning 13858 | -5/Hub_04(d) | Spotted Lightning 13860 | -5/Hub_04(d) | Spotted Lightning 13860 | -5/Hub_04(d) | Spotted Lightning 13862 | -5/Hub_04(d) | Entered Factory 13862 | -4/Factory | Evolved 2 slots: Power x1, Weapon x1 14015 | -4/Factory | Repaired Hvy. Armor Plating 14263 | -4/Factory | Destroyed 7 combat bots 14767 | -4/Factory | Discovered new exit (range 9) 14826 | -4/Factory | Identified exit to Research 15055 | -4/Factory | Entered Research 15055 | -3/Research | Evolved 2 slots: Propulsion x1, Utility x1 16062 | -3/Research | Cargo convoy interrupted 16223 | -3/Research | Destroyed 9 combat bots 16284 | -3/Research | Lost 7 parts (1p1n1u4w) 16495 | -3/Research | Lost 6 parts (3n1u2w) 16502 | -3/Research | System corruption reached 10% 16504 | -3/Research | Discovered new exit (range 12) 16528 | -3/Research | Core integrity fell below 50% 16535 | -3/Research | Core integrity fell below 20% 16537 | -3/Research | Destroyed by X-77 Beamer with Gatling Laser Last Messages --------------- 16528_ Critical hit (Blast). 16528_ K-01 Serf collects debris. 16528_ P-80 Master destroyed. 16528_ L-61 Swordsman knocked back. 16530_ The unstable cave ceiling collapses. 16530_ Myomer Leg blown off. 16530_ Biometal Leg blown off. 16530_ Core Analyzer blown off. 16530_ Imp. Signal Interpreter blown off. 16530_ E-15 Imp destroyed. [Achievement: Hunted] 16530_ Dropped Lrg. Storage Unit. 16530_ Acquired 15 matter. 16531_ Slug penetrates Y-72 Warden. 16531_ Slug penetrates Wall. 16531_ Knocked back. 16532_ K-01 Serf collects debris. 16534_ L-61 Swordsman destroyed. 16535_ Slug penetrates Wall. 16536_ K-01 Serf collects debris. Map ----- +----------------------------------------------------+ | #?????# "S #?????????????????????? | | #?????# """ #?????????????????????? | | ####### "" !???????????????????????? | | % # ## ?????????????????????????? | | ############# # # ???????????????????????????? | | ############# ########+#############+????????????? | | % % % ????????????? | | % %% ???????????? | | %=% % ???????????? | | = ] ???????????? | | ######################/#################?##+?????? | | ????????????## ## ##*** # ??????? | | ????"" ########### ##*** / ????????? | | ????"" " / [##*** #?????????? | | ???"" ########### "# #?????????? | | ?????????????????## #"#####w####?????????? | | ????????????????## ###???" #????????????? | | ????????????????# " " #?????" #????????????? | | ? ???????????????# "Y" #?????# #????????????? | | ??###??????????????# """ #?????# #????????????? | | ???????????????????##########?????# #????????????? | | ???????????##?????????### ####### ###??????????? | | ?????????? ?????# ## h % #??????????? | | ??????????? ### R ##?????????? | | ??????????????? k kwR g x !k;########### | | ???????????????????# @ h g H *% % | | ####??????????????????# ##p g%== | | ??????????????????????###+###g x ## | | ??????????????????????# p #xY g/ " | | ??????????????????????# # xx ! # #######% | | ??????????????????????# % ##% !% g# #??????? | | ??????????????????????# # %!% / #????????? | | ??????????????????????# * ## = ###?????????? | | ??????????????????????# ##!=% #???????????? | | ??????????????????????################???????????? | | ?????????????????????????????????????????????????? | | ?????????????????????????????????????????????????? | | ?????????????????????????????????????????????????? | | ?????????????????????????????????????????????????? | | ?????????????????????????????????????????????????? | | ?????????????????????????????????????????????????? | | ?????????????????????????????????????????????????? | | ?????????????????????????????????????????????????? | | ?????????????????????????????????????????????????? | | ?????????????????????????????????????????????????? | | ?????????????????????????????????????????????????? | | ?????????????????????????????????????????????????? | | ?????????????????????????????????????????????????? | | ?????????????????????????????????????????????????? | | ?????????????????????????????????????????????????? | +----------------------------------------------------+ Best States ------------- Heat Dissipation 96 Energy Generation 41 Energy Capacity 1175 Matter Stores 300 Matter Capacity 300 Sight Range 16 Robot Scan Range 15 Terrain Scan Density 10 Armor Coverage 600 Evasion (%) 55 Targeting Accuracy 8 Target Analysis 8 Core Analysis 6 Recoil Reduction 4 Offensive Hacking 12 Trap Extractor Capacity 6 Item Schematics ----------------- Hcp. Storage Unit | -10/Materials | Hacked Lrg. Storage Unit | -10/Materials | Hacked Robot Schematics ------------------ None Fabricated ------------ Nothing Repaired ---------- Titanium Leg | 19% | -7/Factory Aluminum Leg | 11% | -7/Storage Hpw. Shotgun | 5% | -7/Storage Hvy. Armor Plating | 12% | -4/Factory Studied --------- Aluminum Leg | -8/Materials | Hacked Carbon-fiber Leg | -5/Factory | Hacked Imp. Titanium Leg | -5/Factory | Hacked Gauss Rifle | -5/Factory | Hacked Wave Gun | -5/Factory | Hacked Hvy. Machine Gun | -5/Factory | Hacked Alien Tech Used ----------------- None Achievements -------------- Dramatic Entrance Hunted Challenges ------------ None Game ------ Seed JunkGrenadeBuckler Manual? 0 Play Time 03:12:23 Cumulative 46.0 hours Start 2025.11.04 @ 00:33:42 End 2025.11.10 @ 14:39:13 Sessions 9 Manual Loads 0 Difficulty Rogue Special Mode None Game No. 24 Rogue 24 Adventurer 0 Explorer 0 Win Type - Total 0 Types 0/0/0/0/0/0/0/0/0/0 Lore% 34 Gallery% 34 Achievement% 32 Wizard Run 0 Options --------- Layout 1 ASCII 0 Keyboard 0 Movement Numpad Keybinds 0 Fullscreen 2 Font 24/Smallcaps Map View 50x35 Zoom Use 0% Tactical HUD 1 Map Filters NONE Filters NONE Steam 1 RUN: a786d4ec-447b-4b0d-8738-76733a6bc890